[Event "EYTCC Open U18 2022"]
[Site "Thessaloniki"]
[Date "2022.07.13"]
[Round "2.33"]
[White "Ratnesan, Ranesh"]
[Black "Betsakou, Sofia"]
[Result "1-0"]
[ECO "A05"]
[WhiteElo "2269"]
[BlackElo "1412"]
[Annotator "ChessBase"]
[PlyCount "87"]
[EventDate "2022.07.12"]
[EventType "team-tourn"]
[EventCountry "GRE"]
[SourceTitle "playchess.com"]
[Source "ChessBase"]
[SourceQuality "1"]
[WhiteTeam "England"]
[BlackTeam "Greece"]
[WhiteTeamCountry "ENG"]
[BlackTeamCountry "GRE"]
[TimeControl "40/5400+30:1800+30"]

1. Nf3 {[%emt 0:00:03]} Nf6 {[%emt 0:01:17]} 2. g3 {[%emt 0:00:09]} g6 {[%emt 0:00:25]} 3. Bg2 {[%emt 0:00:07]} Bg7 {[%emt 0:00:10]} 4. O-O {[%emt 0:00:09]} O-O {[%emt 0:00:22]} 5. d3 {[%emt 0:00:06]} d6 {[%emt 0:01:30]} 6. e4 {[%emt 0:00:09]} e6 {[%emt 0:02:52]} 7. c3 {[%emt 0:01:33]} Nbd7 {[%emt 0:03:42]} 8. Re1 {[%emt 0:01:24]} c5 {[%emt 0:02:43]} 9. d4 {[%emt 0:03:08]} e5 {[%emt 0:04:29]} 10. a4 {[%emt 0:04:09]} Qc7 {[%emt 0:01:56]} 11. Na3 {[%emt 0:11:06]} a6 {[%emt 0:02:58]} 12. b4 {[%emt 0:02:38]} b6 {[%emt 0:07:55]} 13. bxc5 {[%emt 0:06:39]} bxc5 {[%emt 0:02:23]} 14. d5 {[%emt 0:00:19]} Ne8 {[%emt 0:13:34]} 15. Nc4 {[%emt 0:11:42]} f5 {[%emt 0:10:48]} 16. a5 {[%emt 0:01:34]} fxe4 {[%emt 0:14:26]} 17. Rxe4 {[%emt 0:00:15]} Ndf6 {[%emt 0:00:46]} 18. Re1 {[%emt 0:01:11]} Rb8 {[%emt 0:02:03]} 19. h3 {[%emt 0:04:04]} Nh5 {[%emt 0:05:16]} 20. Ra3 {[%emt 0:11:02]} Qf7 {[%emt 0:04:16]} 21. Kh2 {[%emt 0:04:43]} h6 {[%emt 0:04:36]} 22. Nb6 {[%emt 0:02:09]} Nc7 {[%emt 0:04:16]} 23. c4 {[%emt 0:03:47]} Nf6 {[%emt 0:00:57]} 24. Be3 {[%emt 0:02:23]} g5 {[%emt 0:01:39]} 25. Nxc8 {[%emt 0:02:13]} Rfxc8 {[%emt 0:00:51]} 26. Nd2 {[%emt 0:01:44]} Rb4 {[%emt 0:02:13]} 27. Qc2 {[%emt 0:02:44]} Rcb8 {[%emt 0:01:29]} 28. Rb1 {[%emt 0:00:38]} Qd7 {[%emt 0:02:47]} 29. Bf1 {[%emt 0:04:22]} Rxb1 {[%emt 0:00:52]} 30. Nxb1 {[%emt 0:00:06]} g4 {[%emt 0:01:17]} 31. h4 {[%emt 0:00:48]} e4 {[%emt 0:00:28]} 32. Nc3 {[%emt 0:01:55]} Qe7 {[%emt 0:00:27]} 33. Bg2 {[%emt 0:00:54]} Re8 {[%emt 0:00:34]} 34. Rb3 {[%emt 0:01:28]} Na8 {[%emt 0:00:36]} 35. Rb1 {[%emt 0:02:39]} Qe5 {[%emt 0:00:27]} 36. Rb7 {[%emt 0:01:03]} h5 {[%emt 0:00:37]} 37. Ne2 {[%emt 0:02:05]} Qa1 {[%emt 0:00:28]} 38. Bd2 {[%emt 0:01:35]} Qa3 {[%emt 0:00:29]} 39. Bc3 {[%emt 0:00:50]} Kf8 {[%emt 0:00:32]} 40. Nf4 {[%emt 0:00:00]} Kg8 {[%emt 0:00:00]} 41. Ne6 {[%emt 0:01:43]} Bh8 {[%emt 0:04:24]} 42. Qd2 {[%emt 0:01:00]} e3 {[%emt 0:04:47]} 43. Qxe3 {[%emt 0:01:48]} Nh7 {[%emt 0:00:35]} 44. Qh6 1-0

[Event "EYTCC Open U18 2022"]
[Site "Thessaloniki"]
[Date "2022.07.13"]
[Round "2.33"]
[White "Tagkaloglou, Savvas Stefanos"]
[Black "Gregoric, Andraz"]
[Result "*"]
[ECO "A05"]
[WhiteElo "1724"]
[BlackElo "2199"]
[Annotator "ChessBase"]
[PlyCount "23"]
[EventDate "2022.07.12"]
[EventType "team-tourn"]
[EventCountry "GRE"]
[SourceTitle "playchess.com"]
[Source "ChessBase"]
[SourceQuality "1"]
[WhiteTeam "Greece"]
[BlackTeam "Slovenia"]
[WhiteTeamCountry "GRE"]
[BlackTeamCountry "SLO"]
[TimeControl "40/5400+30:1800+30"]

1. Nf3 {[%emt 0:00:03]} Nf6 {[%emt 0:01:17]} 2. g3 {[%emt 0:00:09]} g6 {[%emt 0:00:25]} 3. Bg2 {[%emt 0:00:07]} Bg7 {[%emt 0:00:10]} 4. O-O {[%emt 0:00:09]} O-O {[%emt 0:00:22]} 5. d3 {[%emt 0:00:06]} d6 {[%emt 0:01:30]} 6. e4 {[%emt 0:00:09]} e6 {[%emt 0:02:52]} 7. c3 {[%emt 0:01:33]} Nbd7 {[%emt 0:03:42]} 8. Re1 {[%emt 0:01:24]} c5 {[%emt 0:02:43]} 9. d4 {[%emt 0:03:08]} e5 {[%emt 0:04:29]} 10. a4 {[%emt 0:04:09]} Qc7 {[%emt 0:01:56]} 11. Na3 {[%emt 0:11:06]} a6 {[%emt 0:02:58]} 12. b4 {[%emt 0:02:38]} *

[Event "EYTCC Open U18 2022"]
[Site "Thessaloniki"]
[Date "2022.07.13"]
[Round "2.34"]
[White "Skrbec, Leon"]
[Black "Karakotsios, Konstantinos"]
[Result "*"]
[ECO "A40"]
[WhiteElo "2103"]
[BlackElo "1376"]
[Annotator "ChessBase"]
[PlyCount "22"]
[EventDate "2022.07.12"]
[EventType "team-tourn"]
[EventCountry "GRE"]
[SourceTitle "playchess.com"]
[Source "ChessBase"]
[SourceQuality "1"]
[WhiteTeam "Slovenia"]
[BlackTeam "Greece"]
[WhiteTeamCountry "SLO"]
[BlackTeamCountry "GRE"]
[TimeControl "40/5400+30:1800+30"]

1. d4 {[%emt 0:01:26]} Nf6 {[%emt 0:00:49]} 2. Nf3 {[%emt 0:01:18]} g6 {[%emt 0:00:37]} 3. g3 {[%emt 0:00:55]} Bg7 {[%emt 0:00:10]} 4. Bg2 {[%emt 0:00:09]} c5 {[%emt 0:00:31]} 5. c4 {[%emt 0:07:12]} O-O {[%emt 0:00:52]} 6. O-O {[%emt 0:00:42]} cxd4 {[%emt 0:03:27]} 7. Nxd4 {[%emt 0:03:29]} d6 {[%emt 0:02:22]} 8. Nc3 {[%emt 0:02:47]} Nbd7 {[%emt 0:00:10]} 9. b3 {[%emt 0:01:55]} Nc5 {[%emt 0:01:48]} 10. Bb2 {[%emt 0:02:10]} a5 {[%emt 0:01:25]} 11. e3 {[%emt 0:04:55]} Qb6 {[%emt 0:01:36]} *

[Event "EYTCC Open U18 2022"]
[Site "Thessaloniki"]
[Date "2022.07.13"]
[Round "2.34"]
[White "Betsakos, Haralampos"]
[Black "Stoica, Savas Marin"]
[Result "0-1"]
[ECO "A49"]
[WhiteElo "1183"]
[BlackElo "2092"]
[Annotator "ChessBase"]
[PlyCount "98"]
[EventDate "2022.07.12"]
[EventType "team-tourn"]
[EventCountry "GRE"]
[SourceTitle "playchess.com"]
[Source "ChessBase"]
[SourceQuality "1"]
[WhiteTeam "Greece"]
[BlackTeam "England"]
[WhiteTeamCountry "GRE"]
[BlackTeamCountry "ENG"]
[TimeControl "40/5400+30:1800+30"]

1. d4 {[%emt 0:01:26]} Nf6 {[%emt 0:00:49]} 2. Nf3 {[%emt 0:01:18]} g6 {[%emt 0:00:37]} 3. g3 {[%emt 0:00:55]} Bg7 {[%emt 0:00:10]} 4. Bg2 {[%emt 0:00:09]} c5 {[%emt 0:00:31]} 5. c4 {[%emt 0:07:12]} O-O {[%emt 0:00:52]} 6. O-O {[%emt 0:00:42]} cxd4 {[%emt 0:03:27]} 7. Nxd4 {[%emt 0:03:29]} d6 {[%emt 0:02:22]} 8. Nc3 {[%emt 0:02:47]} Nbd7 {[%emt 0:00:10]} 9. b3 {[%emt 0:01:55]} Nc5 {[%emt 0:01:48]} 10. Bb2 {[%emt 0:02:10]} a5 {[%emt 0:01:25]} 11. e3 {[%emt 0:04:55]} Qb6 {[%emt 0:01:36]} 12. Ndb5 {[%emt 0:17:51]} Bd7 {[%emt 0:08:12]} 13. Na4 {[%emt 0:01:58]} Nxa4 {[%emt 0:01:07]} 14. bxa4 {[%emt 0:00:06]} Bc6 {[%emt 0:01:24]} 15. Bd4 {[%emt 0:07:01]} Qd8 {[%emt 0:00:49]} 16. Rb1 {[%emt 0:03:32]} Qd7 {[%emt 0:01:09]} 17. Bxc6 {[%emt 0:09:47]} bxc6 {[%emt 0:00:35]} 18. Bxf6 {[%emt 0:02:47]} Bxf6 {[%emt 0:00:38]} 19. Nd4 {[%emt 0:01:03]} Rfb8 {[%emt 0:24:00]} 20. Nc2 {[%emt 0:10:06]} Qf5 {[%emt 0:03:09]} 21. Rb3 {[%emt 0:03:36]} Qc5 {[%emt 0:09:04]} 22. Qd3 {[%emt 0:03:31]} Rd8 {[%emt 0:00:37]} 23. Rc1 {[%emt 0:10:13]} d5 {[%emt 0:03:45]} 24. Nd4 {[%emt 0:00:30]} e5 {[%emt 0:11:29]} 25. Ne2 {[%emt 0:00:21]} d4 {[%emt 0:01:18]} 26. e4 {[%emt 0:00:49]} Rab8 {[%emt 0:00:26]} 27. Rcb1 {[%emt 0:01:05]} Rb4 {[%emt 0:00:25]} 28. Rxb4 {[%emt 0:00:34]} axb4 {[%emt 0:00:06]} 29. Nc1 {[%emt 0:01:02]} Be7 {[%emt 0:01:35]} 30. Nb3 {[%emt 0:00:37]} Qa7 {[%emt 0:00:07]} 31. a5 {[%emt 0:00:45]} Qa6 {[%emt 0:00:11]} 32. Rd1 {[%emt 0:00:59]} Rb8 {[%emt 0:01:17]} 33. Qc2 {[%emt 0:00:27]} Bd8 {[%emt 0:04:18]} 34. Rd3 {[%emt 0:00:21]} Bxa5 {[%emt 0:00:32]} 35. Nxa5 {[%emt 0:01:12]} Qxa5 {[%emt 0:00:04]} 36. Qe2 {[%emt 0:00:10]} Ra8 {[%emt 0:00:26]} 37. Rd2 {[%emt 0:00:06]} c5 {[%emt 0:00:24]} 38. Qd3 {[%emt 0:00:58]} Qa3 {[%emt 0:00:48]} 39. Qb3 {[%emt 0:00:48]} Qa6 {[%emt 0:01:42]} 40. Rb2 {[%emt 0:00:00]} Kg7 {[%emt 0:00:00]} 41. Qc2 {[%emt 0:09:04]} Qe6 {[%emt 0:01:12]} 42. Qe2 {[%emt 0:01:26]} Ra5 {[%emt 0:04:21]} 43. f4 {[%emt 0:10:13]} Qa6 {[%emt 0:03:50]} 44. fxe5 {[%emt 0:02:08]} Qe6 {[%emt 0:00:26]} 45. Qf3 {[%emt 0:03:55]} Qxe5 {[%emt 0:00:11]} 46. Qf4 {[%emt 0:03:57]} Qxf4 {[%emt 0:01:09]} 47. gxf4 {[%emt 0:00:07]} Ra3 {[%emt 0:00:04]} 48. Kf2 {[%emt 0:02:24]} Rc3 {[%emt 0:00:23]} 49. Ke2 {[%emt 0:01:19]} Re3+ {[%emt 0:00:42]} 0-1

[Event "EYTCC Open U18 2022"]
[Site "Thessaloniki"]
[Date "2022.07.13"]
[Round "2.35"]
[White "Cont, Arya"]
[Black "Karkanas, Stylianos"]
[Result "1-0"]
[ECO "A05"]
[WhiteElo "1968"]
[BlackElo "1089"]
[Annotator "ChessBase"]
[PlyCount "73"]
[EventDate "2022.07.12"]
[EventType "team-tourn"]
[EventCountry "GRE"]
[SourceTitle "playchess.com"]
[Source "ChessBase"]
[SourceQuality "1"]
[WhiteTeam "England"]
[BlackTeam "Greece"]
[WhiteTeamCountry "ENG"]
[BlackTeamCountry "GRE"]
[TimeControl "40/5400+30:1800+30"]

1. Nf3 {[%emt 0:00:02]} Nf6 {[%emt 0:00:13]} 2. e3 {[%emt 0:00:04]} d6 {[%emt 0:00:12]} 3. b3 {[%emt 0:00:45]} g6 {[%emt 0:00:16]} 4. Bb2 {[%emt 0:00:03]} Bg7 {[%emt 0:00:14]} 5. d4 {[%emt 0:03:28]} O-O {[%emt 0:00:32]} 6. Nc3 {[%emt 0:05:12]} Nbd7 {[%emt 0:01:19]} 7. Qd2 {[%emt 0:02:14]} e5 {[%emt 0:02:30]} 8. O-O-O {[%emt 0:04:35]} e4 {[%emt 0:13:04]} 9. Ng5 {[%emt 0:06:21]} d5 {[%emt 0:01:35]} 10. f3 {[%emt 0:04:44]} h6 {[%emt 0:04:06]} 11. Nh3 {[%emt 0:00:32]} Nb6 {[%emt 0:01:39]} 12. Nf2 {[%emt 0:01:32]} Bf5 {[%emt 0:06:56]} 13. g4 {[%emt 0:15:34]} Be6 {[%emt 0:02:01]} 14. Be2 {[%emt 0:01:31]} exf3 {[%emt 0:07:33]} 15. Bxf3 {[%emt 0:00:03]} c6 {[%emt 0:03:37]} 16. h4 {[%emt 0:01:47]} a5 {[%emt 0:06:31]} 17. a4 {[%emt 0:01:55]} Re8 {[%emt 0:03:33]} 18. Rdg1 {[%emt 0:01:54]} Nbd7 {[%emt 0:05:42]} 19. g5 {[%emt 0:01:58]} Nh7 {[%emt 0:03:07]} 20. e4 {[%emt 0:01:07]} dxe4 {[%emt 0:02:05]} 21. Nfxe4 {[%emt 0:01:45]} Qc7 {[%emt 0:05:05]} 22. gxh6 {[%emt 0:01:22]} Bh8 {[%emt 0:02:22]} 23. h5 {[%emt 0:01:31]} Nhf8 {[%emt 0:05:48]} 24. hxg6 {[%emt 0:00:49]} Nxg6 {[%emt 0:01:06]} 25. h7+ {[%emt 0:00:26]} Kf8 {[%emt 0:00:40]} 26. Ba3+ {[%emt 0:01:59]} Re7 {[%emt 0:01:00]} 27. Qh6+ {[%emt 0:01:38]} Ke8 {[%emt 0:01:43]} 28. Rxg6 {[%emt 0:05:10]} fxg6 {[%emt 0:01:19]} 29. Qxg6+ {[%emt 0:00:03]} Bf7 {[%emt 0:02:53]} 30. Nd6+ {[%emt 0:00:51]} Kd8 {[%emt 0:02:44]} 31. Nxf7+ {[%emt 0:00:03]} Rxf7 {[%emt 0:00:42]} 32. Qxf7 {[%emt 0:00:02]} Nf6 {[%emt 0:01:48]} 33. Qg8+ {[%emt 0:00:31]} Kd7 {[%emt 0:00:54]} 34. Bg4+ {[%emt 0:00:11]} Nxg4 {[%emt 0:00:28]} 35. Qxg4+ {[%emt 0:00:04]} Kd8 {[%emt 0:00:44]} 36. Rf1 {[%emt 0:00:24]} Bg7 {[%emt 0:00:51]} 37. h8=Q+ {[%emt 0:00:10]} 1-0

[Event "EYTCC Open U18 2022"]
[Site "Thessaloniki"]
[Date "2022.07.13"]
[Round "2.36"]
[White "Cont, Arya"]
[Black "Karkanas, Stylianos"]
[Result "*"]
[ECO "D71"]
[WhiteElo "1968"]
[BlackElo "1089"]
[Annotator "ChessBase"]
[PlyCount "23"]
[EventDate "2022.07.12"]
[EventType "team-tourn"]
[EventCountry "GRE"]
[SourceTitle "playchess.com"]
[Source "ChessBase"]
[SourceQuality "1"]
[WhiteTeam "England"]
[BlackTeam "Greece"]
[WhiteTeamCountry "ENG"]
[BlackTeamCountry "GRE"]
[TimeControl "40/5400+30:1800+30"]

1. d4 Nf6 2. c4 g6 3. g3 Bg7 4. Bg2 O-O 5. Nf3 d6 6. O-O Nbd7 7. Nc3 e5 8. dxe5 dxe5 9. Qc2 c6 10. Rd1 Qc7 11. b3 Re8 12. Nd2 *

[Event "EYTCC Open U18 2022"]
[Site "Thessaloniki"]
[Date "2022.07.13"]
[Round "2.36"]
[White "Maki, Eftychia Maria"]
[Black "Dias, Savin"]
[Result "0-1"]
[ECO "E67"]
[WhiteElo "1157"]
[BlackElo "1894"]
[Annotator "NA"]
[PlyCount "76"]
[EventDate "2022.07.12"]
[EventType "team-tourn"]
[EventCountry "GRE"]
[SourceTitle "playchess.com"]
[Source "ChessBase"]
[SourceQuality "1"]
[WhiteTeam "Greece"]
[BlackTeam "England"]
[WhiteTeamCountry "GRE"]
[BlackTeamCountry "ENG"]
[TimeControl "40/5400+30:1800+30"]

1. d4 Nf6 2. c4 g6 3. g3 Bg7 4. Bg2 O-O 5. Nf3 d6 6. O-O Nbd7 7. Nc3 e5 8. dxe5 dxe5 9. Qc2 c6 10. Rd1 Qc7 11. b3 Re8 12. Nd2 Nf8 13. Bb2 Bf5 14. Nde4 Rad8 15. Rxd8 Rxd8 16. Rd1 Nxe4 17. Bxe4 Bc8 18. Rxd8 Qxd8 19. Bd3 f5 20. e4 f4 21. Be2 h5 22. Qd1 Qf6 23. Bf3 Ne6 24. Nb1 Ng5 25. Nd2 Qd6 26. Bc1 Bh6 27. Qe2 fxg3 28. Nf1 Nxf3+ 29. Qxf3 gxf2+ 30. Qxf2 Bxc1 31. Ne3 Bxe3 32. Qxe3 Qd4 33. Qxd4 exd4 34. Kf2 Kf7 35. Ke2 Ke6 36. Kd3 Ke5 37. b4 g5 38. c5 h4 0-1

[Event "EYTCC Open U18 2022"]
[Site "Thessaloniki"]
[Date "2022.07.13"]
[Round "2.37"]
[White "Magalakis, Stefanos"]
[Black "Zeneli, Klendi"]
[Result "1-0"]
[ECO "C26"]
[WhiteElo "2181"]
[BlackElo "1921"]
[Annotator "ChessBase"]
[PlyCount "31"]
[EventDate "2022.07.12"]
[EventType "team-tourn"]
[EventCountry "GRE"]
[SourceTitle "playchess.com"]
[Source "ChessBase"]
[SourceQuality "1"]
[WhiteTeam "Greece"]
[BlackTeam "Albania"]
[WhiteTeamCountry "GRE"]
[BlackTeamCountry "ALB"]
[TimeControl "40/5400+30:1800+30"]

1. e4 {[%emt 0:00:31]} e5 {[%emt 0:00:07]} 2. Nc3 {[%emt 0:00:05]} Nf6 {[%emt 0:00:05]} 3. d4 {[%emt 0:00:04]} exd4 {[%emt 0:00:08]} 4. Qxd4 {[%emt 0:00:04]} Nc6 {[%emt 0:00:15]} 5. Qd3 {[%emt 0:00:10]} d5 {[%emt 0:03:34]} 6. Bf4 {[%emt 0:00:53]} Bb4 {[%emt 0:32:42]} 7. O-O-O {[%emt 0:12:05]} Bxc3 {[%emt 0:01:44]} 8. Qxc3 {[%emt 0:01:17]} d4 {[%emt 0:01:45]} 9. Qa3 {[%emt 0:14:56]} Be6 {[%emt 0:04:26]} 10. Bb5 {[%emt 0:23:50]} Nxe4 {[%emt 0:19:51]} 11. Nf3 {[%emt 0:04:59]} Qf6 {[%emt 0:13:56]} 12. Be5 {[%emt 0:18:25]} Qh6+ {[%emt 0:01:22]} 13. Kb1 {[%emt 0:00:05]} Nxf2 {[%emt 0:02:20]} 14. Nxd4 {[%emt 0:03:18]} O-O-O {[%emt 0:09:40]} 15. Bxc6 {[%emt 0:06:01]} Rxd4 {[%emt 0:05:34]} 16. Rxd4 {[%emt 0:03:48]} 1-0

[Event "EYTCC Open U18 2022"]
[Site "Thessaloniki"]
[Date "2022.07.13"]
[Round "2.38"]
[White "Xhembulla, Aleksander"]
[Black "Gerasopoulos, Nikolaos"]
[Result "0-1"]
[ECO "C10"]
[WhiteElo "1909"]
[BlackElo "1526"]
[Annotator "ChessBase"]
[PlyCount "38"]
[EventDate "2022.07.12"]
[EventType "team-tourn"]
[EventCountry "GRE"]
[SourceTitle "playchess.com"]
[Source "ChessBase"]
[SourceQuality "1"]
[WhiteTeam "Albania"]
[BlackTeam "Greece"]
[WhiteTeamCountry "ALB"]
[BlackTeamCountry "GRE"]
[TimeControl "40/5400+30:1800+30"]

1. e4 {[%emt 0:00:03]} e6 {[%emt 0:00:05]} 2. d4 {[%emt 0:00:04]} d5 {[%emt 0:00:05]} 3. Nd2 {[%emt 0:00:04]} dxe4 {[%emt 0:00:06]} 4. Nxe4 {[%emt 0:00:03]} Nd7 {[%emt 0:00:07]} 5. Nf3 {[%emt 0:00:06]} Ngf6 {[%emt 0:00:04]} 6. Nxf6+ {[%emt 0:00:04]} Nxf6 {[%emt 0:00:08]} 7. c3 {[%emt 0:00:03]} Be7 {[%emt 0:00:37]} 8. Bd3 {[%emt 0:00:32]} O-O {[%emt 0:00:00]} 9. Qe2 {[%emt 0:00:07]} b6 {[%emt 0:00:06]} 10. Bf4 {[%emt 0:00:47]} c5 {[%emt 0:01:39]} 11. dxc5 {[%emt 0:15:47]} bxc5 {[%emt 0:10:11]} 12. h4 {[%emt 0:13:53]} Bb7 {[%emt 0:18:57]} 13. h5 {[%emt 0:03:10]} h6 {[%emt 0:06:51]} 14. g4 {[%emt 0:18:11]} e5 {[%emt 0:14:36]} 15. Bxe5 {[%emt 0:00:45]} Nxg4 {[%emt 0:00:14]} 16. Rh3 {[%emt 0:10:55]} Bd6 {[%emt 0:06:33]} 17. Be4 {[%emt 0:10:14]} Bxe4 {[%emt 0:00:28]} 18. Qxe4 {[%emt 0:00:03]} Nxe5 {[%emt 0:00:12]} 19. Nxe5 {[%emt 0:00:04]} Bxe5 {[%emt 0:00:08]} 0-1

[Event "EYTCC Open U18 2022"]
[Site "Thessaloniki"]
[Date "2022.07.13"]
[Round "2.39"]
[White "Skodras, Marios Konstantinos"]
[Black "Ramaj, Ergit"]
[Result "0-1"]
[ECO "B52"]
[WhiteElo "1446"]
[BlackElo "1980"]
[Annotator "ChessBase"]
[PlyCount "114"]
[EventDate "2022.07.12"]
[EventType "team-tourn"]
[EventCountry "GRE"]
[SourceTitle "playchess.com"]
[Source "ChessBase"]
[SourceQuality "1"]
[WhiteTeam "Greece"]
[BlackTeam "Albania"]
[WhiteTeamCountry "GRE"]
[BlackTeamCountry "ALB"]
[TimeControl "40/5400+30:1800+30"]

1. e4 {[%emt 0:01:00]} c5 {[%emt 0:00:08]} 2. Nf3 {[%emt 0:00:38]} d6 {[%emt 0:00:06]} 3. Bb5+ {[%emt 0:00:13]} Bd7 {[%emt 0:00:08]} 4. Bxd7+ {[%emt 0:00:10]} Qxd7 {[%emt 0:00:04]} 5. Nc3 {[%emt 0:00:47]} Nc6 {[%emt 0:00:32]} 6. d4 {[%emt 0:01:06]} cxd4 {[%emt 0:00:18]} 7. Nxd4 {[%emt 0:00:36]} g6 {[%emt 0:01:23]} 8. O-O {[%emt 0:01:03]} Bg7 {[%emt 0:00:32]} 9. Be3 {[%emt 0:00:36]} Nf6 {[%emt 0:01:41]} 10. f3 {[%emt 0:03:41]} O-O {[%emt 0:00:59]} 11. Nce2 {[%emt 0:03:06]} Rac8 {[%emt 0:10:54]} 12. c3 {[%emt 0:05:27]} Ne5 {[%emt 0:02:35]} 13. b3 {[%emt 0:08:41]} d5 {[%emt 0:06:10]} 14. Bf4 {[%emt 0:12:27]} Nc6 {[%emt 0:02:37]} 15. Nxc6 {[%emt 0:04:12]} Qxc6 {[%emt 0:04:32]} 16. e5 {[%emt 0:09:40]} Nh5 {[%emt 0:05:31]} 17. Qd4 {[%emt 0:04:48]} Nxf4 {[%emt 0:17:55]} 18. Nxf4 {[%emt 0:03:11]} e6 {[%emt 0:00:01]} 19. Rac1 {[%emt 0:05:04]} Rfd8 {[%emt 0:05:48]} 20. Nd3 {[%emt 0:01:14]} Bf8 {[%emt 0:07:03]} 21. Kh1 {[%emt 0:06:27]} Bc5 {[%emt 0:03:23]} 22. Qf4 {[%emt 0:05:34]} Qa6 {[%emt 0:02:33]} 23. Qd2 {[%emt 0:02:12]} Qb6 {[%emt 0:04:40]} 24. Rfe1 {[%emt 0:05:08]} Rc7 {[%emt 0:01:01]} 25. f4 {[%emt 0:02:36]} Be7 {[%emt 0:01:37]} 26. h3 {[%emt 0:02:20]} Rdc8 {[%emt 0:01:21]} 27. Rc2 {[%emt 0:03:25]} Qa5 {[%emt 0:02:01]} 28. b4 {[%emt 0:01:07]} Qb6 {[%emt 0:01:41]} 29. Rec1 {[%emt 0:01:28]} Rc4 {[%emt 0:02:53]} 30. Nb2 {[%emt 0:02:27]} Re4 {[%emt 0:00:21]} 31. Kh2 {[%emt 0:01:19]} a5 32. a3 {[%emt 0:00:30]} Kg7 33. g3 {[%emt 0:00:30]} h5 34. Nd3 {[%emt 0:00:30]} h4 35. g4 {[%emt 0:00:30]} Qe3 36. Qxe3 {[%emt 0:00:30]} Rxe3 37. Ne1 {[%emt 0:00:30]} axb4 38. axb4 {[%emt 0:00:30]} b5 39. Ng2 {[%emt 0:00:30]} Re4 40. Rb1 {[%emt 0:00:30]} d4 41. Rbc1 {[%emt 0:30:30]} dxc3 42. Rxc3 {[%emt 0:00:30]} Rxc3 43. Rxc3 {[%emt 0:00:30]} Rxb4 44. Rc7 {[%emt 0:00:30]} Bd8 45. Rb7 {[%emt 0:00:30]} Kf8 46. Rb8 {[%emt 0:00:30]} Ke7 47. Nxh4 {[%emt 0:00:30]} Kd7 48. Ng2 {[%emt 0:00:30]} Rb2 49. Kg3 {[%emt 0:00:30]} b4 50. h4 {[%emt 0:00:30]} Bc7 51. Ra8 {[%emt 0:00:30]} Rb3+ 52. Kh2 {[%emt 0:00:30]} Ra3 53. Rf8 {[%emt 0:00:30]} b3 54. Rxf7+ {[%emt 0:00:30]} Kc6 55. h5 {[%emt 0:00:30]} b2 56. hxg6 {[%emt 0:00:30]} b1=Q 57. g7 {[%emt 0:00:30]} Qh7+ 0-1

[Event "EYTCC Open U18 2022"]
[Site "Thessaloniki"]
[Date "2022.07.13"]
[Round "2.40"]
[White "Boci, Petro"]
[Black "Chasiotis, Odysseas"]
[Result "1-0"]
[ECO "C79"]
[WhiteElo "1709"]
[BlackElo "1371"]
[Annotator "NA"]
[PlyCount "69"]
[EventDate "2022.07.12"]
[EventType "team-tourn"]
[EventCountry "GRE"]
[SourceTitle "playchess.com"]
[Source "ChessBase"]
[SourceQuality "1"]
[WhiteTeam "Albania"]
[BlackTeam "Greece"]
[WhiteTeamCountry "ALB"]
[BlackTeamCountry "GRE"]
[TimeControl "40/5400+30:1800+30"]

1. e4 {[%emt 0:00:05]} e5 {[%emt 0:00:36]} 2. Nf3 {[%emt 0:00:05]} Nc6 {[%emt 0:00:28]} 3. Bb5 {[%emt 0:00:18]} a6 {[%emt 0:00:21]} 4. Ba4 {[%emt 0:00:11]} Nf6 {[%emt 0:00:20]} 5. O-O {[%emt 0:00:11]} d6 {[%emt 0:00:19]} 6. Re1 {[%emt 0:00:16]} Bd7 {[%emt 0:00:27]} 7. c3 {[%emt 0:00:23]} Be7 {[%emt 0:00:39]} 8. d4 {[%emt 0:00:39]} O-O {[%emt 0:04:49]} 9. Nbd2 {[%emt 0:01:30]} exd4 {[%emt 0:10:32]} 10. cxd4 {[%emt 0:00:31]} Re8 {[%emt 0:01:05]} 11. Nf1 {[%emt 0:02:46]} d5 {[%emt 0:08:20]} 12. e5 {[%emt 0:06:01]} Ne4 {[%emt 0:08:29]} 13. Ng3 {[%emt 0:04:47]} Nxg3 {[%emt 0:00:49]} 14. hxg3 {[%emt 0:01:22]} b5 {[%emt 0:04:32]} 15. Bc2 {[%emt 0:01:33]} g6 {[%emt 0:01:14]} 16. Nh2 {[%emt 0:04:29]} Bb4 {[%emt 0:05:52]} 17. Re3 {[%emt 0:04:56]} Ne7 {[%emt 0:03:17]} 18. a3 {[%emt 0:03:22]} Ba5 {[%emt 0:00:22]} 19. g4 {[%emt 0:01:05]} Nc6 {[%emt 0:02:59]} 20. Rg3 {[%emt 0:05:54]} Bb6 {[%emt 0:05:26]} 21. Be3 {[%emt 0:01:19]} Na5 {[%emt 0:03:56]} 22. b3 {[%emt 0:04:13]} Nb7 {[%emt 0:06:14]} 23. Qd2 {[%emt 0:01:47]} f6 {[%emt 0:02:15]} 24. f4 {[%emt 0:01:35]} Rf8 {[%emt 0:06:20]} 25. f5 {[%emt 0:05:11]} g5 {[%emt 0:00:29]} 26. Nf3 {[%emt 0:00:45]} h6 {[%emt 0:01:41]} 27. Rh3 {[%emt 0:00:38]} Kg7 {[%emt 0:02:01]} 28. Kf2 {[%emt 0:03:31]} c6 {[%emt 0:01:15]} 29. Rah1 {[%emt 0:00:21]} Rh8 {[%emt 0:00:34]} 30. Qd3 {[%emt 0:03:27]} fxe5 {[%emt 0:10:34]} 31. Nxe5 {[%emt 0:00:27]} Bc8 {[%emt 0:02:48]} 32. Rxh6 {[%emt 0:03:22]} Rxh6 {[%emt 0:05:47]} 33. Rxh6 {[%emt 0:00:16]} Qf6 {[%emt 0:01:25]} 34. Rxf6 {[%emt 0:00:10]} Kxf6 {[%emt 0:00:06]} 35. Qd2 {[%emt 0:00:12]} 1-0